bitfinex-derivatives/quotes_ETHF0:USTF0_20251211
["timestamp","ask_amount","ask_price","bid_price","bid_amount"]
[1765413188906,2.9731,3304.8,3304.7,4.48070507]
[1765413189100,2.9731,3304.8,3304.7,3.21040507]
[1765413189608,4.06231548,3304.8,3304.7,3.21040507]
[1765413191510,3.6237,3304.0,3303.9,4.5775]
[1765413192305,2.7661,3303.6,3303.5,3.2078]
[1765413192605,2.2553,3303.5,3303.4,6.1476]
[1765413192804,3.6237,3303.5,3303.4,6.1476]
[1765413193008,2.2553,3303.5,3303.4,6.1476]
[1765413193204,3.6237,3303.5,3303.4,2.9398]
[1765413193507,3.6237,3303.5,3303.4,0.00095825]
[1765413193705,3.6237,3303.5,3303.4,1.43285825]
[1765413193892,3.6237,3303.5,3303.4,0.00095825]
[1765413194408,2.2553,3302.5,3302.4,3.09117]
[1765413194597,0.8576,3302.5,3302.4,3.09117]
[1765413195301,3.6237,3302.5,3302.4,3.09117]
[1765413195501,2.2553,3302.5,3302.4,3.09117]
[1765413195696,3.6237,3302.5,3302.4,0.15137]
[1765413196507,3.6237,3302.5,3302.4,1.58327]
[1765413197909,0.8576,3302.5,3302.4,3.09117]
[1765413198109,3.6237,3303.0,3302.9,1.4319]
[1765413198407,0.8576,3303.0,3302.9,6.29895]
[1765413199507,2.2553,3303.0,3302.9,6.29895]
[1765413199709,3.6237,3303.0,3302.9,6.29895]
[1765413200299,2.2553,3303.0,3302.9,6.29895]
[1765413200504,3.6237,3303.0,3302.9,4.79105]
[1765413201607,3.6237,3303.0,3302.9,3.35915]
[1765413201806,3.6237,3303.0,3302.9,4.79105]
[1765413202000,0.8576,3303.0,3302.9,6.29895]
[1765413202205,0.8576,3303.5,3303.3,3.09113]
[1765413202403,0.8576,3303.5,3303.4,3.09113]
[1765413202606,3.6237,3303.5,3302.9,3.2078]
[1765413202803,3.6237,3303.0,3302.9,3.2078]
[1765413203308,2.7661,3302.8,3302.7,0.15136]
[1765413203611,3.85584621,3302.8,3302.7,0.15136]
[1765413205899,3.6237,3302.5,3302.4,3.2078]
[1765413206109,4.71344621,3302.5,3302.4,3.2078]
[1765413206302,4.71193075,3302.5,3302.4,3.2078]
[1765413206508,4.71193075,3302.5,3302.4,3.35917]
[1765413208308,1.4624,3301.9,3301.8,3.0278]
[1765413208511,1.08823075,3301.9,3301.8,3.1792]
[1765413208812,4.12833075,3301.9,3301.8,3.1792]
[1765413209012,2.55063075,3301.9,3301.8,3.1792]
[1765413209211,1.08823075,3301.9,3301.8,3.1792]
[1765413211417,2.55063075,3301.9,3301.8,3.1792]
[1765413211616,1.08823075,3301.9,3301.8,3.1792]
[1765413213912,4.12833075,3301.9,3301.8,0.1514]
[1765413214920,3.5755,3298.5,3298.4,0.3541756]
[1765413215220,2.12512185,3299.6,3299.4,3.26881]
[1765413215520,1.59228297,3300.3,3300.0,1.03818]
[1765413215705,1.59228297,3300.3,3300.2,3.2078]
[1765413215706,3.0401,3300.3,3300.2,3.2078]
[1765413215913,1.06130493,3300.3,3300.2,3.1173]
[1765413216115,1.06130493,3300.3,3299.9,0.15149]
[1765413216116,6.22975391,3300.3,3299.9,3.35929]
[1765413216314,1.06130493,3300.2,3300.1,3.1173]
[1765413216720,2.65451543,3300.2,3300.1,3.1173]
[1765413217019,4.11691543,3300.2,3300.1,3.1173]
[1765413217215,3.0401,3300.0,3299.9,4.88759]
[1765413217415,4.10140493,3300.0,3299.9,4.88759]
[1765413217616,4.10140493,3300.0,3299.9,3.35929]
[1765413217817,1.06130493,3300.0,3299.9,3.26879]
[1765413218718,2.65640918,3300.0,3299.9,3.26879]
[1765413218914,2.52370493,3300.0,3299.9,3.26879]
[1765413219215,1.4624,3299.6,3299.3,15.3648]
[1765413219418,3.0401,3299.4,3299.3,3.2078]
[1765413219624,4.10140493,3299.4,3299.3,3.2078]
[1765413220223,4.10140493,3299.4,3299.3,4.7361]
[1765413220718,6.22652678,3299.4,3299.3,3.2078]
[1765413221119,6.22652678,3299.4,3298.4,0.2049158]
[1765413221120,3.0401,3299.2,3299.1,0.15152]
[1765413221421,3.0401,3298.9,3298.8,3.2078]
[1765413221622,1.4624,3298.5,3298.4,0.2049158]
[1765413221922,3.0401,3297.4,3297.3,0.15161]
[1765413222120,4.10140493,3297.4,3297.3,0.15161]
[1765413222426,1.06130493,3297.4,3297.3,6.47671]
[1765413222617,2.52370493,3297.4,3297.3,4.88771]
[1765413222925,1.06394886,3297.4,3297.3,6.48017755]
[1765413223322,2.65217041,3297.4,3297.3,12.48017755]
[1765413223623,1.06394886,3297.4,3297.3,12.53294704]
[1765413224020,1.06394886,3297.4,3297.3,6.53294704]
[1765413224421,1.06394886,3297.4,3297.3,12.48017755]
[1765413224614,1.06394886,3297.4,3297.3,12.53294684]
[1765413224820,1.06394886,3297.4,3297.3,53.33294684]
[1765413225020,1.06394886,3297.4,3297.3,6.53294684]
[1765413225418,1.06394886,3297.4,3297.3,12.53294684]
[1765413225822,1.06394886,3297.4,3297.3,6.53294684]
[1765413226023,7.31184886,3297.4,3297.3,0.00346755]
[1765413226330,4.10404886,3297.4,3297.3,0.00346755]
[1765413226730,2.52634886,3297.4,3297.3,3.21126755]
[1765413226925,2.52634886,3297.4,3297.3,4.89117755]
[1765413227127,4.10404886,3297.4,3297.3,3.36287755]
[1765413227731,4.10404886,3297.4,3297.3,0.15507755]
[1765413228330,4.10404886,3297.4,3297.3,3.36287755]
[1765413228526,1.06394886,3297.4,3297.3,6.48017755]
[1765413228920,4.10404886,3297.4,3297.3,0.15507755]
[1765413229426,4.10404886,3297.4,3297.3,0.00346755]
[1765413229630,2.64449276,3297.4,3297.3,6.32856755]
[1765413229821,1.06394886,3297.4,3297.3,6.48017755]
[1765413230329,0.73875087,3297.4,3297.3,5.48017755]
[1765413230529,0.55642603,3297.4,3297.3,11.48017755]
[1765413230738,0.00454758,3298.8,3298.7,3.26884]
[1765413231031,1.4624,3299.4,3299.3,0.15151]
[1765413231422,3.0401,3299.4,3299.3,0.15151]
[1765413231621,3.04264445,3299.4,3299.3,0.15431792]
[1765413232129,0.00254445,3299.4,3299.3,0.15431792]
[1765413232326,0.00254445,3299.4,3299.3,1.68261792]
[1765413232631,3.99544445,3299.4,3299.3,1.77702644]
[1765413232926,3.99544445,3299.4,3299.3,0.00280792]
[1765413233120,0.95534445,3299.4,3298.5,1.67985]
[1765413233326,3.2078,3299.1,3298.5,3.30255852]
[1765413233727,3.2078,3299.1,3298.6,3.35935]
[1765413233930,3.2078,3299.1,3298.6,0.15155]
[1765413234227,3.0401,3298.7,3298.6,0.15155]
[1765413234421,1.4624,3298.7,3298.6,0.15155]
[1765413234627,1.4624,3298.7,3298.6,3.30255852]
[1765413234826,2.11199716,3299.0,3298.6,3.30255852]
[1765413235330,2.11199716,3299.1,3298.9,1.67983]
[1765413235524,3.0401,3299.0,3298.9,0.15153]
[1765413235725,5.15209716,3299.0,3298.9,0.15153]
[1765413236030,1.4624,3299.0,3298.9,0.15153]
[1765413236530,1.4624,3299.0,3298.9,1.67983]
[1765413236826,2.11199716,3299.3,3298.9,1.67983]
[1765413237026,2.11454161,3299.4,3299.2,1.5283]
[1765413237232,2.11199716,3299.3,3299.2,3.26882]
[1765413237432,2.11454161,3299.4,3299.3,3.1173]
[1765413237634,2.11454161,3299.4,3299.3,3.26881]
[1765413237838,5.15464161,3299.4,3299.3,0.15151]
[1765413238435,3.04264445,3299.4,3299.3,0.15151]
[1765413238630,4.21874445,3299.4,3299.3,1.62270852]
[1765413238828,1.9643,3298.8,3298.7,0.15154]
[1765413239027,1.9643,3298.8,3298.7,1.99714]
[1765413239326,1.9643,3298.8,3298.7,3.61984852]
[1765413240330,5.0333,3298.8,3298.7,1.77424852]
[1765413241436,2.11199716,3299.0,3298.9,3.96963]
[1765413241632,5.96919716,3299.0,3298.9,0.15153]
[1765413241832,7.14529716,3299.0,3298.9,0.15153]
[1765413242137,5.0333,3299.0,3298.9,0.15153]
[1765413242834,0.92294078,3299.0,3298.9,3.96963]
[1765413243039,2.88724078,3299.0,3298.9,3.96963]
[1765413244341,5.95624078,3299.0,3298.9,0.15153]
[1765413244644,3.8572,3298.3,3297.8,3.2078]
[1765413244842,0.92294078,3298.2,3297.8,3.2078]
[1765413245139,0.92294078,3298.1,3298.0,3.96967]
[1765413245638,0.92294078,3298.1,3298.0,5.09077414]
[1765413245842,0.92294078,3298.1,3298.0,6.26977414]
[1765413246230,0.92294078,3298.1,3298.0,5.09077414]
[1765413246442,4.78014078,3298.1,3298.0,1.27267414]
[1765413246947,0.92294078,3298.1,3298.0,5.09077414]
[1765413247137,0.92294078,3298.1,3298.0,6.26977414]
[1765413247338,4.78014078,3298.1,3298.0,3.11827414]
[1765413247940,0.92294078,3298.1,3298.0,5.09077414]
[1765413248145,0.92294078,3298.1,3298.0,6.26977414]
[1765413251246,2.89024078,3298.1,3298.0,3.11827414]
[1765413251543,0.92294078,3298.1,3298.0,5.06787414]
[1765413252845,2.89024078,3298.1,3298.0,5.06787414]
[1765413253047,4.75144078,3298.1,3298.0,1.27267414]
[1765413253243,6.3525554,3298.1,3298.0,0.15157]
[1765413253541,0.92294078,3298.1,3298.0,5.01367414]
[1765413254646,2.89024078,3298.1,3298.0,5.01367414]
[1765413254947,4.75144078,3298.1,3298.0,1.27267414]
[1765413255143,7.95924078,3298.1,3298.0,1.27267414]
[1765413255451,3.8285,3297.4,3297.3,1.94301]
[1765413255751,4.75144078,3297.4,3297.3,0.15161]
[1765413255949,4.75144078,3297.4,3297.3,1.27271414]
[1765413256150,4.75144078,3297.4,3297.3,0.15161]
[1765413257549,4.75144078,3297.4,3297.3,1.27271414]
[1765413258648,4.75144078,3297.4,3297.3,5.01371414]
[1765413258649,0.92294078,3297.4,3297.3,5.01371414]
[1765413260140,0.00454758,3297.7,3297.6,5.05009]
[1765413260549,0.00454758,3297.7,3297.6,8.25789]
[1765413260949,5.1751,3298.4,3298.3,1.94296]
[1765413261254,5.1751,3298.4,3298.3,0.15156]
[1765413261255,7.0363,3298.4,3298.3,0.15156]
[1765413263352,7.0363,3298.4,3298.3,1.27266414]
[1765413264046,3.8285,3298.1,3298.0,0.00454758]
[1765413264452,3.8285,3298.1,3298.0,1.12565172]
[1765413265653,3.8285,3298.1,3298.0,1.27722172]
[1765413267252,3.8285,3298.1,3298.0,3.06862172]
[1765413267655,3.8285,3298.1,3298.0,1.27722172]
[1765413268245,3.8285,3298.1,3296.9,9.265]
[1765413268246,3.761,3296.6,3296.0,1.1304]
[1765413268444,1.87375394,3296.6,3296.5,0.15164]
[1765413268743,1.87375394,3296.6,3295.9,3.2078]
[1765413268744,4.828,3296.0,3295.9,3.2078]
[1765413268948,4.828,3296.0,3295.1,11.908]
[1765413268949,4.828,3296.0,3295.5,3.2078]
[1765413269144,4.828,3296.0,3295.9,3.3594]
[1765413269349,4.828,3296.0,3295.9,3.51107]
[1765413269547,4.828,3296.0,3294.7,40.8]
[1765413269548,3.761,3295.3,3295.2,0.1517]
[1765413269753,5.0786,3295.3,3295.2,5.3124]
[1765413269963,3.761,3294.4,3294.3,3.26060901]
[1765413270252,3.761,3294.4,3292.9,47.81179019]
[1765413270253,1.067,3295.2,3294.8,1.95302]
[1765413270460,3.21234758,3295.3,3295.0,0.15171]
[1765413270651,3.761,3295.1,3295.0,0.15171]
[1765413270853,3.761,3295.1,3295.0,3.51111]
[1765413271049,3.761,3295.1,3294.3,3.2078]
[1765413271258,6.9688,3294.5,3294.4,3.3594]
[1765413271459,6.9688,3294.5,3294.1,0.15175]
[1765413271460,3.761,3294.2,3294.1,0.15175]
[1765413271651,3.76446239,3294.2,3294.1,0.15175]
[1765413271851,0.00346239,3294.2,3294.1,5.31245]
[1765413272147,1.89366239,3294.2,3293.3,3.2078]
[1765413272352,0.00346239,3294.2,3294.1,1.95305]
[1765413272651,0.00346239,3294.2,3294.1,3.83685]
[1765413272854,0.00454758,3295.3,3294.8,0.15172]
[1765413273155,3.761,3294.9,3294.1,3.2078]
[1765413273358,7.0457,3295.2,3294.0,0.15176]
[1765413273359,3.2078,3294.7,3294.0,1.28216]
[1765413273657,1.8708,3294.1,3294.0,0.15176]
[1765413273851,1.87371356,3294.1,3294.0,0.15543006]
[1765413274057,0.00291356,3294.1,3294.0,0.15543006]
[1765413274252,0.00291356,3294.1,3294.0,4.97093006]
[1765413275364,3.2078,3294.5,3294.4,3.83684]
[1765413275949,3.2078,3294.5,3294.0,1.13407006]
[1765413275950,3.761,3295.1,3295.0,0.15171]
[1765413276155,6.97269214,3295.1,3295.0,0.15171]
[1765413276452,6.97269214,3295.1,3294.1,3.35955]
[1765413276659,3.2078,3294.7,3294.6,4.96723]
[1765413277161,5.0786,3294.7,3294.6,0.15173]
[1765413277355,6.9688,3294.7,3294.6,0.15173]
[1765413277562,6.9688,3294.7,3294.0,1.13407006]
[1765413277761,3.2078,3294.3,3294.0,1.13407006]
[1765413277962,1.8708,3294.1,3294.0,1.28583006]
[1765413278160,3.761,3294.1,3294.0,0.15543006]
[1765413279254,3.761,3294.1,3294.0,0.00367006]
[1765413280159,9.761,3294.1,3294.0,0.00367006]
[1765413280367,3.761,3293.6,3293.5,0.15178]
[1765413280857,3.761,3293.6,3293.0,0.1518]
[1765413281060,3.76555476,3293.6,3293.0,0.1518]
[1765413281366,3.2078,3293.3,3293.0,0.15403414]
[1765413281664,1.8708,3293.1,3293.0,0.15403414]
[1765413281861,1.8708,3293.1,3293.0,0.00223414]
[1765413281862,3.761,3293.1,3293.0,0.00223414]
[1765413282066,3.761,3293.1,3292.1,0.15184]
[1765413282067,3.761,3292.2,3292.1,0.15184]
[1765413282368,3.2078,3292.2,3292.1,1.95314]
[1765413282668,3.2078,3292.2,3292.1,3.83694]
[1765413283066,3.21151954,3292.2,3292.1,3.8392452]
[1765413283270,5.08231954,3292.2,3292.1,0.1541452]
[1765413283567,6.97251954,3292.2,3292.1,0.1541452]
[1765413284168,3.2078,3292.8,3292.3,3.6851]
[1765413284465,0.00455476,3293.6,3292.2,1.1304]
[1765413284466,3.2078,3295.4,3294.0,1.95306]
[1765413284769,3.761,3294.0,3293.2,3.2078]
[1765413285267,0.00455476,3293.9,3293.6,0.15178]
[1765413285867,1.8708,3293.7,3293.6,0.15178]
[1765413286368,0.00455476,3293.9,3293.6,0.15178]
[1765413286761,0.00455476,3293.9,3293.8,6.8929]
[1765413286962,0.00336369,3294.0,3293.9,3.83686]
[1765413287269,3.2078,3294.7,3293.8,3.2078]
[1765413287966,3.2078,3295.3,3294.6,1.95303]
[1765413288160,0.96840445,3295.2,3294.9,3.2078]
[1765413288360,0.00250535,3295.2,3294.9,3.2078]
[1765413288566,1.067,3294.9,3293.6,0.15177]
[1765413288762,3.2078,3294.2,3293.6,0.15392962]
[1765413290078,3.2078,3293.8,3292.9,0.15181]
[1765413290367,3.2078,3293.3,3292.1,1.28224]
[1765413290570,1.067,3293.5,3292.1,1.28224]
[1765413290571,3.2078,3292.7,3292.2,0.15184]
[1765413291067,3.21118227,3292.7,3292.2,0.15397519]
[1765413291259,0.96831897,3292.6,3292.2,0.15397519]
[1765413291463,3.21118227,3292.7,3292.2,0.15397519]
[1765413291664,0.96831666,3292.6,3292.2,0.15397519]
[1765413291864,0.96831666,3292.5,3292.2,0.15397519]
[1765413292065,3.2078,3292.3,3292.2,0.00213519]
[1765413292260,4.17602185,3292.3,3292.2,0.00213519]
[1765413294974,0.9022,3290.7,3289.7,0.15195]
[1765413295271,3.2078,3290.5,3290.2,0.15193]
[1765413295474,2.03522185,3290.4,3290.3,0.08858303]
[1765413295672,0.96822185,3290.4,3290.3,0.08858303]
[1765413295884,0.96822185,3290.4,3290.3,0.0923527]
[1765413296074,10.14450138,3290.4,3290.3,0.0923527]
[1765413296379,10.14450138,3290.4,3288.9,3.2078]
[1765413296380,2.68422185,3290.4,3288.9,3.2078]
[1765413296575,2.1068914,3289.7,3289.4,3.2078]
[1765413296778,2.1068914,3289.9,3289.8,0.15195]
[1765413296978,5.84141426,3290.1,3289.6,1.1304]
[1765413296979,3.2078,3290.1,3290.0,0.15194]
[1765413297176,5.31699991,3290.1,3290.0,0.15428651]
[1765413297579,0.00230851,3290.1,3290.0,3.36208651]
[1765413297984,0.00230851,3290.1,3290.0,0.15428651]
[1765413300481,2.10919991,3290.1,3289.3,0.15198]
[1765413300679,2.11043667,3289.5,3289.3,0.15198]
[1765413300980,3.2078,3289.6,3289.3,0.15198]
[1765413300981,2.11043667,3289.4,3289.3,0.15198]
[1765413301184,3.2078,3289.6,3288.4,0.15202]
[1765413301489,3.2078,3289.0,3288.6,0.152]
[1765413301682,3.2078,3289.0,3288.8,1.7024]
[1765413301878,3.2078,3289.0,3288.8,1.8544]
[1765413302073,3.2078,3289.0,3288.9,0.15199]
[1765413302478,0.00455476,3289.3,3288.9,6.0]
[1765413302681,0.00455476,3289.3,3288.8,1.7024]
[1765413302879,0.00455476,3289.3,3289.2,0.15198]
[1765413304093,0.00455476,3289.3,3289.2,9.35978]
[1765413304388,0.00230851,3290.1,3289.2,3.2078]
[1765413304703,1.57918477,3290.0,3289.5,3.2078]
[1765413304890,1.57918477,3290.0,3289.0,3.35979]
[1765413305088,3.2078,3289.8,3289.0,3.35979]
[1765413305289,0.00455476,3289.7,3289.2,0.15198]
[1765413305495,3.2078,3289.4,3289.1,0.00455476]
[1765413305991,0.00455476,3289.7,3289.4,0.15197]
[1765413306189,0.00455476,3289.7,3289.6,1.85436]
[1765413307794,0.00230851,3290.1,3289.6,1.7024]
[1765413307993,0.00230851,3290.1,3290.0,0.15194]
[1765413308194,1.57918477,3290.5,3290.2,0.15193]
[1765413308494,1.57918477,3290.6,3290.4,1.7024]
[1765413308691,1.57918477,3290.8,3290.4,1.7024]
[1765413308890,1.53574779,3291.4,3291.2,1.7024]
[1765413309192,3.2078,3291.5,3291.2,0.15188]
[1765413309501,0.00358096,3291.5,3291.2,0.15418851]
[1765413309889,0.00358096,3291.5,3291.3,0.15188]
[1765413310198,0.00358096,3291.5,3291.2,1.70470851]
[1765413310393,0.00358096,3291.5,3291.4,0.15188]
[1765413311091,0.00455476,3291.7,3291.6,0.15187]
[1765413311793,0.00455476,3291.7,3291.4,0.15188]
[1765413311988,0.00455476,3291.7,3291.2,1.52780851]
[1765413312188,0.00690833,3291.7,3291.6,0.15187]
[1765413312392,8.33e-06,3291.7,3291.6,0.15187]
[1765413312595,3.2078,3292.6,3291.6,6.0]
[1765413312799,2.10802973,3292.9,3292.8,0.15181]
[1765413313098,2.63361426,3293.8,3293.4,0.15179]
[1765413313395,0.00455476,3293.9,3293.7,3.2078]
[1765413313597,3.2078,3295.0,3293.8,40.8]
[1765413313799,3.2078,3295.0,3294.9,0.15172]
[1765413314503,3.2078,3295.4,3294.9,15.6138]
[1765413314693,3.21084121,3295.4,3295.3,0.1517]
[1765413314893,0.00304121,3295.4,3295.3,0.1517]
[1765413315194,0.00304121,3295.4,3294.8,0.00455476]
[1765413315391,1.646,3294.9,3294.8,0.00455476]
[1765413316293,0.00304121,3295.4,3294.8,0.00455476]
[1765413317004,0.00304121,3295.4,3294.8,0.15627476]
[1765413317699,3.2078,3295.1,3294.8,0.00455476]
[1765413318290,9.2078,3295.1,3294.1,0.15175]
[1765413318497,9.2078,3295.1,3294.0,3.2078]
[1765413318498,1.646,3294.4,3294.0,3.2078]
[1765413318692,3.2078,3294.6,3294.4,1.5255]
[1765413318890,4.8538,3295.2,3294.8,0.15172]
[1765413319095,1.646,3295.2,3294.8,0.15172]
[1765413319301,0.00304121,3295.4,3294.7,3.21235476]
[1765413319496,0.00304121,3295.4,3295.3,0.1517]
[1765413322095,0.00455476,3295.7,3295.6,0.15169]
[1765413322406,0.00455476,3295.7,3295.6,3.35949]
[1765413322707,0.00455476,3295.7,3295.6,9.35949]
[1765413322998,3.2078,3296.3,3296.2,0.15166]
[1765413323306,0.00379172,3296.3,3296.2,0.1546393]
[1765413325704,0.00379172,3296.3,3296.2,0.0029793]
[1765413326507,0.00379172,3296.3,3296.2,0.1546393]
[1765413328211,0.00455476,3296.6,3296.5,0.15164]
[1765413328511,3.2078,3297.3,3296.3,4.0813]
[1765413328702,3.2078,3297.7,3297.2,0.15161]
[1765413329098,3.2078,3297.7,3296.9,12.376]
[1765413329303,3.21133032,3297.7,3297.6,0.15159]
[1765413330002,1.646,3299.1,3297.7,1.4986]
[1765413330214,1.646,3299.1,3298.6,0.15154]
[1765413330915,1.64966431,3299.1,3298.6,0.15462829]
[1765413331802,1.64966431,3299.1,3298.6,0.00308829]
[1765413332002,3.2078,3298.7,3297.8,0.15158]
[1765413332204,4.8228,3298.4,3297.8,0.15158]
[1765413333008,1.615,3298.4,3298.1,0.15157]
[1765413333208,3.2078,3298.8,3297.8,3.21088645]
[1765413333416,3.2078,3298.8,3298.4,0.15155]
[1765413335520,3.2078,3298.8,3297.8,3.36246645]
[1765413335717,4.8228,3298.4,3297.8,3.36246645]
[1765413336216,0.9172806,3298.3,3297.8,3.21088645]
[1765413336420,3.2078,3298.8,3297.8,3.21088645]
[1765413336716,0.91728779,3298.7,3297.8,3.21088645]
[1765413336907,0.91728779,3298.6,3297.8,3.21088645]
[1765413337108,0.91728779,3298.5,3298.2,0.15156]
[1765413337310,0.91728779,3298.4,3298.2,0.15156]
[1765413337610,3.2078,3298.8,3298.2,0.15156]
[1765413337811,0.91848288,3298.7,3298.3,0.15156]
[1765413338107,0.91848288,3298.6,3298.3,0.15156]
[1765413338302,0.91848288,3298.5,3298.3,0.15156]
[1765413338617,5.74128288,3298.4,3298.3,0.15156]
[1765413338814,7.96468288,3298.4,3298.3,0.15156]
[1765413339115,12.74372296,3298.4,3298.3,0.15156]
[1765413339817,9.53592296,3298.4,3298.3,0.15156]
[1765413340116,7.96468288,3298.4,3298.3,0.15156]
[1765413340420,0.91848288,3298.4,3298.3,0.15156]
[1765413340717,0.91848288,3298.4,3298.3,2.86256]
[1765413341512,0.91848288,3298.4,3298.3,5.48356]
[1765413342114,1.58731353,3299.1,3299.0,5.48353]
[1765413342310,0.00366431,3299.1,3299.0,17.81753]
[1765413342619,1.58364922,3300.0,3299.9,5.48349]
[1765413342915,1.58364922,3300.4,3299.9,1.94140456]
[1765413343122,2.10802973,3300.7,3300.3,0.15147]
[1765413343419,1.59250732,3300.7,3300.3,0.15422427]
[1765413343716,1.58974401,3300.6,3300.3,0.15422427]
[1765413343911,1.58974401,3300.5,3300.3,0.15422427]
[1765413344217,0.00276331,3300.7,3300.6,0.15146]
[1765413344610,0.00276331,3300.7,3300.3,0.00275427]
[1765413345510,1.615,3299.8,3299.2,3.2078]
[1765413345917,1.58625446,3300.0,3299.2,3.2078]
[1765413346217,1.58625446,3300.0,3299.4,0.15151]
[1765413346518,1.58625446,3300.2,3299.6,3.21510173]
[1765413346821,3.2078,3300.3,3299.6,3.21510173]
[1765413346822,1.58625446,3300.1,3299.6,3.21510173]
[1765413347115,1.58625446,3300.0,3299.6,3.21510173]
[1765413347415,1.58625446,3300.3,3299.6,3.21510173]
[1765413347622,0.00276331,3300.7,3300.0,3.2078]
[1765413347816,1.58625446,3301.4,3300.5,4.8838]
[1765413348017,1.58625446,3301.5,3300.5,4.8838]
[1765413348419,4.79405446,3301.6,3301.4,0.15142]
[1765413348625,3.2078,3301.6,3301.4,0.15142]
[1765413348920,3.21022601,3301.6,3301.4,0.15142]
[1765413350324,3.21022601,3301.6,3300.5,14.002]
[1765413350325,0.00242601,3301.6,3301.5,0.15141]
[1765413353921,0.00242601,3301.6,3301.5,5.48341]
[1765413354315,1.58625446,3302.4,3301.7,0.1514]
[1765413354525,0.89525875,3302.3,3301.8,3.2078]
[1765413354828,0.89525875,3302.2,3301.8,3.2078]
[1765413355025,0.89528432,3302.1,3302.0,2.711]
[1765413355229,0.89750677,3302.1,3302.0,2.71375696]
[1765413355728,3.57130677,3302.1,3302.0,0.15414696]
[1765413355917,6.32870677,3302.1,3302.0,0.15414696]
[1765413357218,6.32870677,3302.1,3302.0,0.15139]
[1765413357425,5.4312,3301.0,3300.9,3.2078]
[1765413357625,5.4312,3301.0,3299.8,1.6474]
[1765413357626,6.32648432,3301.0,3299.8,3.2078]
[1765413357829,3.2078,3300.4,3300.0,0.15148]
[1765413358031,0.89528432,3300.3,3300.0,0.15148]
[1765413358227,0.89528432,3300.2,3300.0,0.15148]
[1765413358423,3.21232424,3300.4,3300.0,0.00326864]
[1765413358632,3.5589162,3300.3,3300.2,0.15147]
[1765413358827,0.8851162,3300.3,3300.0,0.00326864]
[1765413359031,0.8851162,3300.2,3300.0,0.00326864]
[1765413359335,0.8851162,3300.1,3300.0,0.00326864]
[1765413361030,1.7618,3299.8,3299.1,0.15152]
[1765413361231,1.7618,3299.8,3298.4,3.2078]
[1765413361232,1.7618,3299.1,3298.4,3.2078]
[1765413361431,3.2078,3298.8,3298.4,3.2078]
[1765413361729,0.8851162,3298.7,3298.6,0.15155]
[1765413361933,0.00217319,3298.7,3298.6,0.0026031]
[1765413362132,3.2078,3299.6,3299.4,0.15151]
[1765413362430,3.2078,3299.6,3299.5,0.15151]
[1765413362635,4.09351815,3299.6,3299.5,0.15151]
[1765413363129,4.0972573,3299.6,3299.5,0.15151]
[1765413364023,4.0972573,3299.6,3298.8,0.15154]
[1765413364024,5.68618542,3299.6,3298.8,0.15154]
[1765413364230,3.2078,3298.9,3298.8,0.15154]
[1765413364534,4.09351815,3298.9,3298.8,0.15154]
[1765413364726,5.68244627,3298.9,3298.6,0.0026031]
[1765413365033,0.88571815,3298.8,3298.6,0.0026031]
[1765413365238,0.88571815,3298.7,3298.6,0.0026031]
[1765413366724,0.88571815,3298.7,3298.6,0.1541531]
[1765413369128,1.7618,3298.4,3298.3,0.00454773]
[1765413369336,5.85531815,3298.4,3298.3,0.00454773]
[1765413369538,7.44424627,3298.4,3298.3,0.00454773]
[1765413369737,5.85531815,3298.4,3298.3,0.00454773]
[1765413370241,5.85531815,3298.4,3298.3,0.00768582]
[1765413371435,3.2078,3298.4,3298.3,5.27434582]
[1765413371632,3.2078,3299.2,3298.7,2.5498]
[1765413371837,1.7618,3299.8,3298.8,1.94077144]
[1765413372141,3.2078,3300.0,3299.9,0.15149]
[1765413372736,0.00452424,3300.3,3300.2,0.15147]
[1765413373037,0.00765191,3300.3,3300.2,2.09224144]
[1765413373436,0.00765191,3300.3,3300.2,8.09224144]
[1765413373639,0.00765191,3300.3,3300.2,11.30004144]
[1765413373839,3.2078,3301.2,3301.1,0.15143]
[1765413374139,3.25512812,3302.6,3300.8,4.8186]
[1765413374440,3.2078,3302.4,3302.0,0.15139]
[1765413374833,3.2078,3302.4,3302.0,0.15418175]
[1765413374834,3.21007456,3302.4,3302.0,0.15418175]
[1765413375739,3.21007456,3302.4,3302.0,0.00279175]
[1765413375939,0.00227456,3302.4,3302.3,0.15138]
[1765413376331,3.2078,3302.9,3302.8,0.15135]
[1765413376531,3.2078,3303.5,3303.0,0.15134]
[1765413376730,3.2078,3303.9,3303.4,0.15132]
[1765413376944,3.2078,3303.5,3303.4,0.15132]
[1765413377241,3.2078,3303.5,3302.5,0.15137]
[1765413377439,3.2078,3303.5,3302.0,1.94356319]
[1765413377440,3.2078,3302.9,3302.0,0.00279175]
[1765413377745,4.874,3302.4,3302.0,0.00279175]
[1765413377939,0.88152546,3302.3,3301.2,3.647]
[1765413378137,3.2078,3302.0,3301.3,0.15142]
[1765413378546,3.2078,3302.0,3301.4,0.15142]
[1765413379046,3.2123241,3302.0,3301.5,0.15141]
[1765413379544,4.874,3301.6,3301.4,0.00754214]
[1765413380044,0.0045241,3302.0,3301.4,0.00754214]
[1765413380045,3.2123241,3302.0,3301.4,0.00754214]
[1765413380240,3.2123241,3302.0,3301.4,0.15896214]
[1765413381436,1.6662,3301.6,3301.4,0.15896214]
[1765413381650,3.2123241,3302.0,3301.5,0.15141]
[1765413381835,3.2123241,3302.0,3301.4,0.00754214]
[1765413382040,3.2123241,3302.0,3301.7,0.1514]
[1765413382838,3.2123241,3302.0,3301.8,0.1514]
[1765413383144,3.2123241,3302.0,3301.4,0.00754214]
[1765413383145,1.6662,3301.6,3301.4,0.00754214]
[1765413383341,3.2078,3301.5,3301.4,0.00754214]
[1765413385349,3.2078,3301.5,3300.9,3.2078]
[1765413385553,3.2078,3301.0,3300.7,0.15145]
[1765413385741,3.2078,3301.0,3300.2,1.94077144]
[1765413386247,3.2078,3301.0,3300.5,3.2078]
[1765413386441,3.2078,3301.4,3301.0,0.15144]
[1765413386640,3.2078,3301.4,3300.5,3.2078]
[1765413386641,3.21156034,3301.4,3301.1,0.15143]
[1765413387150,1.6662,3301.2,3301.1,0.15143]
[1765413388950,4.2155,3301.2,3301.1,0.15143]